[Event "Titled Tuesday Blitz April 12 Early 2022"]
[White "Dreev, Aleksey"]
[Black "Mikhailov, Viacheslav"]
[WhiteFideId "4100107"]
[BlackFideId "4187369"]
[WhiteElo "2625"]
[BlackElo "2381"]
[Result "1-0"]
[Round "04"]
[TimeControl "180+1"]
[Date "2022.04.12"]
[WhiteClock "0:00:06"]
[BlackClock "0:00:02"]

1. d4 {[%clk 0:03:00]}  Nf6 {[%clk 0:02:59]} 2. c4 {[%clk 0:03:00]}  g6 {[%clk 0:03:00]} 3. Nc3 {[%clk 0:03:00]}  Bg7 {[%clk 0:03:00]} 4. e4 {[%clk 0:03:00]}  O-O {[%clk 0:03:01]} 5. Bd3 {[%clk 0:02:59]}  d6 {[%clk 0:03:01]} 6. Nge2 {[%clk 0:02:59]}  e5 {[%clk 0:02:59]} 7. d5 {[%clk 0:02:59]}  Nbd7 {[%clk 0:02:58]} 8. O-O {[%clk 0:02:59]}  Nc5 {[%clk 0:02:59]} 9. Bc2 {[%clk 0:03:00]}  a5 {[%clk 0:02:59]} 10. b3 {[%clk 0:02:53]}  Nh5 {[%clk 0:02:56]} 11. Be3 {[%clk 0:02:51]}  b6 {[%clk 0:02:56]} 12. Qd2 {[%clk 0:02:50]}  Bd7 {[%clk 0:02:52]} 13. Rae1 {[%clk 0:02:44]}  Qe7 {[%clk 0:02:51]} 14. f3 {[%clk 0:02:41]}  f5 {[%clk 0:02:48]} 15. exf5 {[%clk 0:02:40]}  gxf5 {[%clk 0:02:49]} 16. f4 {[%clk 0:02:40]}  Rae8 {[%clk 0:02:46]} 17. Bf2 {[%clk 0:02:04]}  Qf6 {[%clk 0:02:37]} 18. fxe5 {[%clk 0:01:56]}  dxe5 {[%clk 0:02:38]} 19. a3 {[%clk 0:01:56]}  Bh6 {[%clk 0:01:54]} 20. Qd1 {[%clk 0:01:52]}  Qg7 {[%clk 0:01:37]} 21. b4 {[%clk 0:01:46]}  axb4 {[%clk 0:01:38]} 22. axb4 {[%clk 0:01:46]}  Na6 {[%clk 0:01:38]} 23. Qb1 {[%clk 0:01:36]}  f4 {[%clk 0:01:38]} 24. Kh1 {[%clk 0:01:23]}  Kh8 {[%clk 0:01:39]} 25. Ne4 {[%clk 0:01:09]}  Rg8 {[%clk 0:01:32]} 26. Rg1 {[%clk 0:01:09]}  Bg4 {[%clk 0:01:18]} 27. Qb3 {[%clk 0:01:06]}  Nf6 {[%clk 0:00:59]} 28. h3 {[%clk 0:00:58]}  Nxe4 {[%clk 0:00:55]} 29. Bxe4 {[%clk 0:00:57]}  Bd7 {[%clk 0:00:44]} 30. Ra1 {[%clk 0:00:46]}  Nb8 {[%clk 0:00:43]} 31. Qd3 {[%clk 0:00:46]}  Bg5 {[%clk 0:00:43]} 32. c5 {[%clk 0:00:44]}  bxc5 {[%clk 0:00:39]} 33. bxc5 {[%clk 0:00:43]}  Qh6 {[%clk 0:00:38]} 34. c6 {[%clk 0:00:43]}  Bc8 {[%clk 0:00:36]} 35. Qf3 {[%clk 0:00:29]}  Bh4 {[%clk 0:00:32]} 36. Bxh4 {[%clk 0:00:16]}  Qxh4 {[%clk 0:00:33]} 37. Rgf1 {[%clk 0:00:15]}  Rg7 {[%clk 0:00:23]} 38. Qf2 {[%clk 0:00:13]}  Qh6 {[%clk 0:00:22]} 39. Ra3 {[%clk 0:00:11]}  Reg8 {[%clk 0:00:21]} 40. Rfa1 {[%clk 0:00:09]}  Na6 {[%clk 0:00:16]} 41. Ng1 {[%clk 0:00:05]}  Nb4 {[%clk 0:00:12]} 42. Rb1 {[%clk 0:00:05]}  f3 {[%clk 0:00:10]} 43. Rxf3 {[%clk 0:00:04]}  Na6 {[%clk 0:00:09]} 44. Rc3 {[%clk 0:00:03]}  Qg5 {[%clk 0:00:05]} 45. Qe3 {[%clk 0:00:03]}  Qe7 {[%clk 0:00:04]} 46. Rf1 {[%clk 0:00:03]}  Nb4 {[%clk 0:00:04]} 47. Qf3 {[%clk 0:00:03]}  Qd6 {[%clk 0:00:04]} 48. Qf6 {[%clk 0:00:03]}  Qxf6 {[%clk 0:00:03]} 49. Rxf6 {[%clk 0:00:03]}  Ba6 {[%clk 0:00:02]} 50. d6 {[%clk 0:00:03]}  cxd6 {[%clk 0:00:02]} 51. Rxd6 {[%clk 0:00:04]}  Bf1 {[%clk 0:00:02]} 52. g4 {[%clk 0:00:03]}  Na6 {[%clk 0:00:01]} 53. Re6 {[%clk 0:00:03]}  Nc7 {[%clk 0:00:01]} 54. Rxe5 {[%clk 0:00:03]}  Nb5 {[%clk 0:00:02]} 55. Rcc5 {[%clk 0:00:03]}  Bd3 {[%clk 0:00:02]} 56. Nf3 {[%clk 0:00:04]}  Nc7 {[%clk 0:00:02]} 57. Bxd3 {[%clk 0:00:04]}  Na6 {[%clk 0:00:03]} 58. Bxa6 {[%clk 0:00:04]}  Re7 {[%clk 0:00:03]} 59. Bc4 {[%clk 0:00:05]}  Ra7 {[%clk 0:00:03]} 60. Red5 {[%clk 0:00:05]}  Rf8 {[%clk 0:00:02]} 61. Kg2 {[%clk 0:00:06]}  Ra2+ {[%clk 0:00:02]} 62. Bxa2 {[%clk 0:00:06]} 1-0


[Site "https://www.chess.com"]

[Event "Titled Tuesday Blitz April 12 Early 2022"]
[White "Ehlvest, Jaan"]
[Black "Zhao, Jun"]
[WhiteFideId "4500016"]
[BlackFideId "8602522"]
[WhiteElo "2505"]
[BlackElo "2547"]
[Result "0-1"]
[Round "04"]
[TimeControl "180+1"]
[Date "2022.04.12"]
[WhiteClock "0:00:02"]
[BlackClock "0:01:22"]

1. e4 {[%clk 0:02:56]}  e5 {[%clk 0:02:59]} 2. Nf3 {[%clk 0:02:56]}  Nc6 {[%clk 0:02:58]} 3. g3 {[%clk 0:02:56]}  Nf6 {[%clk 0:02:57]} 4. d3 {[%clk 0:02:56]}  Bc5 {[%clk 0:02:56]} 5. Bg2 {[%clk 0:02:56]}  d6 {[%clk 0:02:56]} 6. O-O {[%clk 0:02:56]}  a6 {[%clk 0:02:52]} 7. c3 {[%clk 0:02:56]}  Ba7 {[%clk 0:02:52]} 8. a4 {[%clk 0:02:55]}  O-O {[%clk 0:02:48]} 9. Nbd2 {[%clk 0:02:55]}  Ne7 {[%clk 0:02:49]} 10. d4 {[%clk 0:02:51]}  Ng6 {[%clk 0:02:49]} 11. Re1 {[%clk 0:02:51]}  Re8 {[%clk 0:02:45]} 12. a5 {[%clk 0:02:49]}  h6 {[%clk 0:02:39]} 13. b4 {[%clk 0:02:39]}  Bg4 {[%clk 0:02:37]} 14. Bb2 {[%clk 0:02:32]}  Qd7 {[%clk 0:02:35]} 15. Qc2 {[%clk 0:02:32]}  Nh7 {[%clk 0:02:30]} 16. h4 {[%clk 0:02:28]}  Nf6 {[%clk 0:02:28]} 17. Nh2 {[%clk 0:02:23]}  Bh3 {[%clk 0:02:27]} 18. Ndf3 {[%clk 0:02:19]}  Rad8 {[%clk 0:02:20]} 19. Rad1 {[%clk 0:02:17]}  Qc8 {[%clk 0:02:19]} 20. Bc1 {[%clk 0:02:07]}  Bxg2 {[%clk 0:02:14]} 21. Kxg2 {[%clk 0:02:07]}  c6 {[%clk 0:02:07]} 22. c4 {[%clk 0:01:43]}  exd4 {[%clk 0:02:06]} 23. Nxd4 {[%clk 0:01:42]}  d5 {[%clk 0:01:57]} 24. c5 {[%clk 0:00:56]}  dxe4 {[%clk 0:01:55]} 25. Bb2 {[%clk 0:00:48]}  Bb8 {[%clk 0:01:52]} 26. Ne2 {[%clk 0:00:32]}  Rxd1 {[%clk 0:01:42]} 27. Rxd1 {[%clk 0:00:33]}  Nd5 {[%clk 0:01:42]} 28. Qb3 {[%clk 0:00:31]}  e3 {[%clk 0:01:39]} 29. f3 {[%clk 0:00:28]}  Qc7 {[%clk 0:01:35]} 30. f4 {[%clk 0:00:24]}  Ngxf4+ {[%clk 0:01:28]} 31. gxf4 {[%clk 0:00:23]}  Nxf4+ {[%clk 0:01:28]} 32. Nxf4 {[%clk 0:00:06]}  Qxf4 {[%clk 0:01:29]} 33. Nf1 {[%clk 0:00:03]}  Qf2+ {[%clk 0:01:22]} 34. Kh1 {[%clk 0:00:02]}  e2 {[%clk 0:01:22]} 0-1


[Site "https://www.chess.com"]

[Event "Titled Tuesday Blitz April 12 Early 2022"]
[White "Gaehwiler, Gabriel"]
[Black "Tan, Jun Ying"]
[WhiteFideId "1314530"]
[BlackFideId "5710413"]
[WhiteElo "2383"]
[BlackElo "1827"]
[Result "1/2-1/2"]
[Round "04"]
[TimeControl "180+1"]
[Date "2022.04.13"]
[WhiteClock "0:00:21"]
[BlackClock "0:00:06"]

1. Nf3 {[%clk 0:03:00]}  c5 {[%clk 0:02:59]} 2. c4 {[%clk 0:03:00]}  Nf6 {[%clk 0:02:59]} 3. g3 {[%clk 0:03:01]}  b6 {[%clk 0:02:59]} 4. Bg2 {[%clk 0:03:01]}  Bb7 {[%clk 0:03:00]} 5. O-O {[%clk 0:03:02]}  e6 {[%clk 0:03:00]} 6. d4 {[%clk 0:03:02]}  cxd4 {[%clk 0:03:00]} 7. Qxd4 {[%clk 0:03:03]}  Be7 {[%clk 0:02:59]} 8. b3 {[%clk 0:03:03]}  d6 {[%clk 0:02:54]} 9. Rd1 {[%clk 0:03:02]}  Nbd7 {[%clk 0:02:42]} 10. Ba3 {[%clk 0:03:01]}  Nc5 {[%clk 0:02:42]} 11. Nc3 {[%clk 0:02:59]}  O-O {[%clk 0:02:36]} 12. Nb5 {[%clk 0:02:57]}  Ne8 {[%clk 0:02:34]} 13. Rac1 {[%clk 0:02:53]}  a6 {[%clk 0:02:31]} 14. Nc3 {[%clk 0:02:53]}  Qc7 {[%clk 0:02:25]} 15. Qe3 {[%clk 0:02:50]}  Nf6 {[%clk 0:02:22]} 16. h3 {[%clk 0:02:46]}  Rfe8 {[%clk 0:02:21]} 17. Nd4 {[%clk 0:02:44]}  Bxg2 {[%clk 0:02:21]} 18. Kxg2 {[%clk 0:02:45]}  Rac8 {[%clk 0:02:15]} 19. Qf3 {[%clk 0:02:45]}  Bf8 {[%clk 0:02:08]} 20. Nc2 {[%clk 0:02:37]}  Qb8 {[%clk 0:02:06]} 21. Bb2 {[%clk 0:02:36]}  b5 {[%clk 0:01:58]} 22. cxb5 {[%clk 0:02:21]}  axb5 {[%clk 0:01:59]} 23. Nb1 {[%clk 0:02:13]}  Nfd7 {[%clk 0:01:52]} 24. Nd2 {[%clk 0:02:06]}  Ne5 {[%clk 0:01:46]} 25. Qe3 {[%clk 0:01:45]}  Qa8+ {[%clk 0:01:42]} 26. f3 {[%clk 0:01:44]}  Qxa2 {[%clk 0:01:36]} 27. Bd4 {[%clk 0:00:57]}  Ncd3 {[%clk 0:01:06]} 28. Bxe5 {[%clk 0:00:32]}  Nxc1 {[%clk 0:00:57]} 29. Nb4 {[%clk 0:00:32]}  Qa3 {[%clk 0:00:49]} 30. Bc3 {[%clk 0:00:30]}  Nxb3 {[%clk 0:00:41]} 31. Ne4 {[%clk 0:00:31]}  Rxc3 {[%clk 0:00:28]} 32. Qxc3 {[%clk 0:00:29]}  d5 {[%clk 0:00:28]} 33. Nc2 {[%clk 0:00:28]}  Qa4 {[%clk 0:00:15]} 34. Nf2 {[%clk 0:00:28]}  Qc4 {[%clk 0:00:13]} 35. Rd3 {[%clk 0:00:26]}  Rc8 {[%clk 0:00:12]} 36. Nd1 {[%clk 0:00:23]}  Qxc3 {[%clk 0:00:11]} 37. Rxc3 {[%clk 0:00:24]}  Rxc3 {[%clk 0:00:11]} 38. Nxc3 {[%clk 0:00:25]}  b4 {[%clk 0:00:09]} 39. Na2 {[%clk 0:00:25]}  Bc5 {[%clk 0:00:07]} 40. Naxb4 {[%clk 0:00:24]}  Kf8 {[%clk 0:00:07]} 41. Nd3 {[%clk 0:00:24]}  Bd6 {[%clk 0:00:07]} 42. f4 {[%clk 0:00:19]}  Nc5 {[%clk 0:00:07]} 43. Kf3 {[%clk 0:00:18]}  Nxd3 {[%clk 0:00:07]} 44. exd3 {[%clk 0:00:19]}  Ke7 {[%clk 0:00:07]} 45. Nd4 {[%clk 0:00:19]}  f6 {[%clk 0:00:07]} 46. Ne2 {[%clk 0:00:19]}  e5 {[%clk 0:00:07]} 47. f5 {[%clk 0:00:18]}  Kd7 {[%clk 0:00:06]} 48. Ke3 {[%clk 0:00:18]}  Kc6 {[%clk 0:00:06]} 49. g4 {[%clk 0:00:18]}  Bc5+ {[%clk 0:00:06]} 50. Kd2 {[%clk 0:00:19]}  Kb5 {[%clk 0:00:06]} 51. Nc3+ {[%clk 0:00:19]}  Kc6 {[%clk 0:00:07]} 52. Ne2 {[%clk 0:00:19]}  Bd6 {[%clk 0:00:07]} 53. Kc3 {[%clk 0:00:20]}  Kc5 {[%clk 0:00:07]} 54. d4+ {[%clk 0:00:20]}  exd4+ {[%clk 0:00:07]} 55. Kd3 {[%clk 0:00:21]}  Be5 {[%clk 0:00:08]} 56. Nc1 {[%clk 0:00:21]}  Kb4 {[%clk 0:00:07]} 57. Ne2 {[%clk 0:00:22]}  Kc5 {[%clk 0:00:08]} 58. Nc1 {[%clk 0:00:22]}  Bf4 {[%clk 0:00:07]} 59. Nb3+ {[%clk 0:00:22]}  Kd6 {[%clk 0:00:07]} 60. Nxd4 {[%clk 0:00:23]}  Be5 {[%clk 0:00:08]} 61. Nf3 {[%clk 0:00:22]}  g6 {[%clk 0:00:08]} 62. Nh4 {[%clk 0:00:21]}  gxf5 {[%clk 0:00:07]} 63. Nxf5+ {[%clk 0:00:21]}  Ke6 {[%clk 0:00:07]} 64. Ne3 {[%clk 0:00:22]}  Bd6 {[%clk 0:00:07]} 65. Nf5 {[%clk 0:00:21]}  Be5 {[%clk 0:00:07]} 66. Ng7+ {[%clk 0:00:20]}  Kf7 {[%clk 0:00:07]} 67. Nf5 {[%clk 0:00:21]}  Ke6 {[%clk 0:00:06]} 1/2-1/2


[Site "https://www.chess.com"]

[Event "Titled Tuesday Blitz April 12 Early 2022"]
[White "Gallegos Diaz, Carlos Alberto"]
[Black "Vianello, Enrico"]
[WhiteFideId "3900886"]
[BlackFideId "810738"]
[WhiteElo "2362"]
[BlackElo "2269"]
[Result "1/2-1/2"]
[Round "04"]
[TimeControl "180+1"]
[Date "2022.04.13"]
[WhiteClock "0:00:08"]
[BlackClock "0:00:08"]

1. e4 {[%clk 0:03:00]}  c5 {[%clk 0:02:56]} 2. Nf3 {[%clk 0:02:59]}  Nc6 {[%clk 0:02:54]} 3. Bb5 {[%clk 0:02:58]}  g6 {[%clk 0:02:53]} 4. O-O {[%clk 0:02:57]}  Bg7 {[%clk 0:02:52]} 5. Re1 {[%clk 0:02:57]}  Nd4 {[%clk 0:02:50]} 6. Bc4 {[%clk 0:02:51]}  e6 {[%clk 0:02:42]} 7. c3 {[%clk 0:02:48]}  Nxf3+ {[%clk 0:02:42]} 8. Qxf3 {[%clk 0:02:49]}  Ne7 {[%clk 0:02:42]} 9. d4 {[%clk 0:02:43]}  cxd4 {[%clk 0:02:41]} 10. cxd4 {[%clk 0:02:40]}  Bxd4 {[%clk 0:02:31]} 11. e5 {[%clk 0:02:37]}  O-O {[%clk 0:02:22]} 12. Nc3 {[%clk 0:02:31]}  f6 {[%clk 0:02:17]} 13. Bh6 {[%clk 0:02:24]}  Rf7 {[%clk 0:02:15]} 14. Rad1 {[%clk 0:02:22]}  fxe5 {[%clk 0:02:13]} 15. Qg4 {[%clk 0:02:15]}  Nf5 {[%clk 0:02:11]} 16. Bg5 {[%clk 0:02:13]}  Qb6 {[%clk 0:02:07]} 17. Kh1 {[%clk 0:02:00]}  d5 {[%clk 0:01:55]} 18. Bb3 {[%clk 0:01:38]}  Bd7 {[%clk 0:01:47]} 19. f4 {[%clk 0:01:34]}  e4 {[%clk 0:01:44]} 20. Qh3 {[%clk 0:01:30]}  Raf8 {[%clk 0:01:20]} 21. g4 {[%clk 0:01:09]}  Ng7 {[%clk 0:01:07]} 22. Bh6 {[%clk 0:00:38]}  a5 {[%clk 0:01:04]} 23. Nxd5 {[%clk 0:00:27]}  exd5 {[%clk 0:01:00]} 24. Bxd5 {[%clk 0:00:28]}  e3 {[%clk 0:00:41]} 25. Bxg7 {[%clk 0:00:19]}  Kxg7 {[%clk 0:00:37]} 26. Bxf7 {[%clk 0:00:17]}  Rxf7 {[%clk 0:00:38]} 27. Re2 {[%clk 0:00:15]}  Bc6+ {[%clk 0:00:38]} 28. Kg1 {[%clk 0:00:15]}  Rxf4 {[%clk 0:00:33]} 29. g5 {[%clk 0:00:14]}  Kg8 {[%clk 0:00:27]} 30. Qe6+ {[%clk 0:00:13]}  Kg7 {[%clk 0:00:22]} 31. Qe7+ {[%clk 0:00:11]}  Rf7 {[%clk 0:00:22]} 32. Qd6 {[%clk 0:00:10]}  Bc5 {[%clk 0:00:19]} 33. Qe5+ {[%clk 0:00:09]}  Kg8 {[%clk 0:00:19]} 34. Rf1 {[%clk 0:00:06]}  Rxf1+ {[%clk 0:00:13]} 35. Kxf1 {[%clk 0:00:07]}  Bf8 {[%clk 0:00:12]} 36. Qe6+ {[%clk 0:00:07]}  Kh8 {[%clk 0:00:11]} 37. Qe5+ {[%clk 0:00:07]}  Kg8 {[%clk 0:00:09]} 38. Qe6+ {[%clk 0:00:08]}  Kg7 {[%clk 0:00:07]} 39. Qf6+ {[%clk 0:00:08]}  Kg8 {[%clk 0:00:08]} 40. Qe6+ {[%clk 0:00:08]} 1/2-1/2


[Site "https://www.chess.com"]

[Event "Titled Tuesday Blitz April 12 Early 2022"]
[White "Galperin, Platon"]
[Black "Hnydiuk, Aleksander"]
[WhiteFideId "14165414"]
[BlackFideId "1109057"]
[WhiteElo "2432"]
[BlackElo "2374"]
[Result "1-0"]
[Round "04"]
[TimeControl "180+1"]
[Date "2022.04.13"]
[WhiteClock "0:01:10"]
[BlackClock "0:00:32"]

1. a3 {[%clk 0:03:00]}  g6 {[%clk 0:02:58]} 2. d4 {[%clk 0:03:00]}  Nf6 {[%clk 0:02:57]} 3. Nf3 {[%clk 0:03:01]}  Bg7 {[%clk 0:02:57]} 4. b4 {[%clk 0:02:58]}  O-O {[%clk 0:02:54]} 5. Bb2 {[%clk 0:02:59]}  d6 {[%clk 0:02:49]} 6. e3 {[%clk 0:02:58]}  Nbd7 {[%clk 0:02:45]} 7. Nbd2 {[%clk 0:02:58]}  Qe8 {[%clk 0:02:40]} 8. Nc4 {[%clk 0:02:55]}  b6 {[%clk 0:02:33]} 9. Be2 {[%clk 0:02:53]}  Bb7 {[%clk 0:02:33]} 10. O-O {[%clk 0:02:54]}  Ne4 {[%clk 0:02:30]} 11. a4 {[%clk 0:02:47]}  e5 {[%clk 0:02:29]} 12. a5 {[%clk 0:02:47]}  Qe7 {[%clk 0:02:24]} 13. a6 {[%clk 0:02:44]}  Bc6 {[%clk 0:02:08]} 14. dxe5 {[%clk 0:02:14]}  dxe5 {[%clk 0:01:59]} 15. Ba3 {[%clk 0:01:58]}  Bb5 {[%clk 0:01:47]} 16. Qe1 {[%clk 0:01:47]}  Rad8 {[%clk 0:01:39]} 17. Bb2 {[%clk 0:01:39]}  Qe6 {[%clk 0:01:14]} 18. Na3 {[%clk 0:01:38]}  Bxe2 {[%clk 0:01:13]} 19. Qxe2 {[%clk 0:01:39]}  c5 {[%clk 0:00:59]} 20. Nb5 {[%clk 0:01:35]}  cxb4 {[%clk 0:00:50]} 21. Nxa7 {[%clk 0:01:28]}  Ndc5 {[%clk 0:00:49]} 22. Nb5 {[%clk 0:01:27]}  Ra8 {[%clk 0:00:42]} 23. Nc7 {[%clk 0:01:25]}  Qe7 {[%clk 0:00:38]} 24. Nxa8 {[%clk 0:01:24]}  Rxa8 {[%clk 0:00:39]} 25. Rfd1 {[%clk 0:01:18]}  h6 {[%clk 0:00:37]} 26. Qb5 {[%clk 0:01:14]}  Ra7 {[%clk 0:00:32]} 27. Qxb6 {[%clk 0:01:10]} 1-0


[Site "https://www.chess.com"]

[Event "Titled Tuesday Blitz April 12 Early 2022"]
[White "Girinath, P.D.S."]
[Black "Kosteniuk, Alexandra"]
[WhiteFideId "5000572"]
[BlackFideId "4128125"]
[WhiteElo "2369"]
[BlackElo "2469"]
[Result "0-1"]
[Round "04"]
[TimeControl "180+1"]
[Date "2022.04.13"]
[WhiteClock "0:00:08"]
[BlackClock "0:00:39"]

1. e4 {[%clk 0:03:00]}  c6 {[%clk 0:02:59]} 2. d3 {[%clk 0:03:00]}  d5 {[%clk 0:02:59]} 3. Nd2 {[%clk 0:03:01]}  e5 {[%clk 0:02:58]} 4. Ngf3 {[%clk 0:03:00]}  Bd6 {[%clk 0:02:56]} 5. g3 {[%clk 0:03:00]}  Nf6 {[%clk 0:02:56]} 6. Bg2 {[%clk 0:03:00]}  O-O {[%clk 0:02:56]} 7. O-O {[%clk 0:03:00]}  Nbd7 {[%clk 0:02:55]} 8. exd5 {[%clk 0:02:54]}  cxd5 {[%clk 0:02:54]} 9. c4 {[%clk 0:02:55]}  dxc4 {[%clk 0:02:34]} 10. Nxc4 {[%clk 0:02:54]}  Bc7 {[%clk 0:02:34]} 11. Re1 {[%clk 0:02:50]}  Re8 {[%clk 0:02:34]} 12. b3 {[%clk 0:02:36]}  b5 {[%clk 0:02:29]} 13. Ne3 {[%clk 0:01:51]}  Bb7 {[%clk 0:02:23]} 14. Bb2 {[%clk 0:01:49]}  Nc5 {[%clk 0:02:13]} 15. d4 {[%clk 0:01:47]}  exd4 {[%clk 0:02:10]} 16. Nxd4 {[%clk 0:01:47]}  Bxg2 {[%clk 0:02:09]} 17. Kxg2 {[%clk 0:01:48]}  Qd7 {[%clk 0:02:03]} 18. Rc1 {[%clk 0:01:03]}  Bb6 {[%clk 0:01:56]} 19. Ndf5 {[%clk 0:00:54]}  Qc6+ {[%clk 0:01:47]} 20. Kg1 {[%clk 0:00:49]}  Rad8 {[%clk 0:01:45]} 21. Qc2 {[%clk 0:00:44]}  Qe6 {[%clk 0:01:40]} 22. Bxf6 {[%clk 0:00:36]}  Qxf6 {[%clk 0:01:29]} 23. Nd5 {[%clk 0:00:33]}  Rxe1+ {[%clk 0:01:19]} 24. Rxe1 {[%clk 0:00:34]}  Qg5 {[%clk 0:01:12]} 25. h4 {[%clk 0:00:27]}  Qh5 {[%clk 0:01:06]} 26. Re5 {[%clk 0:00:14]}  Qf3 {[%clk 0:00:58]} 27. Qd2 {[%clk 0:00:11]}  Nd3 {[%clk 0:00:49]} 28. Nde7+ {[%clk 0:00:07]}  Kf8 {[%clk 0:00:45]} 29. Ne3 {[%clk 0:00:08]}  Nxe5 {[%clk 0:00:39]} 0-1


[Site "https://www.chess.com"]

[Event "Titled Tuesday Blitz April 12 Early 2022"]
[White "GodDMuhammad"]
[Black "Manolache, Marius"]
[BlackFideId "1201530"]
[WhiteElo "2302"]
[BlackElo "2364"]
[Result "0-1"]
[Round "04"]
[TimeControl "180+1"]
[Date "2022.04.13"]
[WhiteClock "0:00:08"]
[BlackClock "0:00:39"]

1. f4 {[%clk 0:03:00]}  Nf6 {[%clk 0:02:58]} 2. Nf3 {[%clk 0:02:59]}  d5 {[%clk 0:02:58]} 3. d3 {[%clk 0:02:59]}  b6 {[%clk 0:02:57]} 4. g3 {[%clk 0:02:59]}  Bb7 {[%clk 0:02:57]} 5. Bg2 {[%clk 0:02:59]}  e6 {[%clk 0:02:56]} 6. c3 {[%clk 0:02:59]}  Nbd7 {[%clk 0:02:53]} 7. Qc2 {[%clk 0:02:59]}  Bc5 {[%clk 0:02:50]} 8. b4 {[%clk 0:02:57]}  Be7 {[%clk 0:02:49]} 9. Nbd2 {[%clk 0:02:54]}  a5 {[%clk 0:02:49]} 10. b5 {[%clk 0:02:53]}  Bc5 {[%clk 0:02:47]} 11. a4 {[%clk 0:02:51]}  Qe7 {[%clk 0:02:45]} 12. Ne5 {[%clk 0:02:42]}  h5 {[%clk 0:02:37]} 13. h3 {[%clk 0:02:33]}  O-O {[%clk 0:02:19]} 14. d4 {[%clk 0:02:27]}  Bd6 {[%clk 0:02:18]} 15. O-O {[%clk 0:02:12]}  Rfc8 {[%clk 0:02:16]} 16. Re1 {[%clk 0:02:04]}  c5 {[%clk 0:02:12]} 17. bxc6 {[%clk 0:02:03]}  Bxc6 {[%clk 0:02:11]} 18. Nxc6 {[%clk 0:02:02]}  Rxc6 {[%clk 0:02:11]} 19. Bb2 {[%clk 0:01:59]}  Rac8 {[%clk 0:02:03]} 20. e4 {[%clk 0:01:48]}  dxe4 {[%clk 0:02:02]} 21. Nxe4 {[%clk 0:01:49]}  Nxe4 {[%clk 0:01:56]} 22. Bxe4 {[%clk 0:01:47]}  R6c7 {[%clk 0:01:55]} 23. Qe2 {[%clk 0:01:41]}  Nf6 {[%clk 0:01:50]} 24. Bf3 {[%clk 0:01:41]}  h4 {[%clk 0:01:47]} 25. Qf2 {[%clk 0:01:17]}  hxg3 {[%clk 0:01:37]} 26. Qxg3 {[%clk 0:01:12]}  Rxc3 {[%clk 0:01:34]} 27. Bxc3 {[%clk 0:01:12]}  Rxc3 {[%clk 0:01:34]} 28. Rac1 {[%clk 0:01:07]}  Qc7 {[%clk 0:01:33]} 29. Rxc3 {[%clk 0:01:03]}  Qxc3 {[%clk 0:01:33]} 30. Rd1 {[%clk 0:00:54]}  Nd5 {[%clk 0:01:25]} 31. Qf2 {[%clk 0:00:29]}  Bxf4 {[%clk 0:01:17]} 32. Kh1 {[%clk 0:00:20]}  Ne3 {[%clk 0:01:11]} 33. Rg1 {[%clk 0:00:17]}  Qxd4 {[%clk 0:01:09]} 34. Qh4 {[%clk 0:00:18]}  Nf5 {[%clk 0:00:59]} 35. Qg4 {[%clk 0:00:17]}  Qe3 {[%clk 0:00:57]} 36. h4 {[%clk 0:00:13]}  Be5 {[%clk 0:00:50]} 37. h5 {[%clk 0:00:12]}  Qf2 {[%clk 0:00:49]} 38. Rg2 {[%clk 0:00:10]}  Ng3+ {[%clk 0:00:47]} 39. Kh2 {[%clk 0:00:09]}  Nxh5+ {[%clk 0:00:41]} 40. Kh3 {[%clk 0:00:09]}  Nf4+ {[%clk 0:00:40]} 41. Kh2 {[%clk 0:00:09]}  Nxg2+ {[%clk 0:00:39]} 42. Kh3 {[%clk 0:00:08]}  Nf4+ {[%clk 0:00:39]} 0-1


[Site "https://www.chess.com"]

[Event "Titled Tuesday Blitz April 12 Early 2022"]
[White "Gu, Xiaobing"]
[Black "Simonovic, Miroslav"]
[WhiteFideId "8602611"]
[BlackFideId "919152"]
[WhiteElo "2174"]
[BlackElo "2043"]
[Result "0-1"]
[Round "04"]
[TimeControl "180+1"]
[Date "2022.04.13"]
[WhiteClock "0:00:27"]
[BlackClock "0:00:27"]

1. e4 {[%clk 0:03:00]}  c5 {[%clk 0:02:59]} 2. Nf3 {[%clk 0:03:00]}  Nc6 {[%clk 0:03:00]} 3. Bb5 {[%clk 0:03:00]}  g6 {[%clk 0:03:00]} 4. Bxc6 {[%clk 0:03:00]}  dxc6 {[%clk 0:03:01]} 5. d3 {[%clk 0:03:00]}  Bg7 {[%clk 0:03:01]} 6. Nc3 {[%clk 0:03:00]}  e5 {[%clk 0:03:01]} 7. h3 {[%clk 0:03:00]}  Ne7 {[%clk 0:03:02]} 8. Be3 {[%clk 0:02:58]}  b6 {[%clk 0:03:01]} 9. Qd2 {[%clk 0:02:58]}  h6 {[%clk 0:03:01]} 10. O-O {[%clk 0:02:42]}  Be6 {[%clk 0:03:01]} 11. a3 {[%clk 0:02:37]}  f5 {[%clk 0:03:00]} 12. exf5 {[%clk 0:02:36]}  gxf5 {[%clk 0:03:01]} 13. Qe2 {[%clk 0:02:36]}  O-O {[%clk 0:03:00]} 14. Nh4 {[%clk 0:02:27]}  Nd5 {[%clk 0:02:04]} 15. Bd2 {[%clk 0:02:25]}  Qxh4 {[%clk 0:02:01]} 16. f4 {[%clk 0:02:13]}  Rae8 {[%clk 0:01:44]} 17. fxe5 {[%clk 0:02:11]}  Bd7 {[%clk 0:01:44]} 18. Qf3 {[%clk 0:01:46]}  Rxe5 {[%clk 0:01:36]} 19. Nxd5 {[%clk 0:01:40]}  cxd5 {[%clk 0:01:35]} 20. Bf4 {[%clk 0:01:37]}  Ree8 {[%clk 0:01:17]} 21. Qxd5+ {[%clk 0:01:37]}  Be6 {[%clk 0:01:18]} 22. Qb7 {[%clk 0:01:37]}  Bxb2 {[%clk 0:01:11]} 23. Rae1 {[%clk 0:01:25]}  Bd4+ {[%clk 0:01:08]} 24. Kh2 {[%clk 0:01:24]}  Rf7 {[%clk 0:01:01]} 25. Qc6 {[%clk 0:01:22]}  Bd7 {[%clk 0:00:57]} 26. Rxe8+ {[%clk 0:01:20]}  Bxe8 {[%clk 0:00:57]} 27. Qxe8+ {[%clk 0:01:19]}  Kg7 {[%clk 0:00:58]} 28. Qe6 {[%clk 0:01:09]}  Qf6 {[%clk 0:00:55]} 29. Qd5 {[%clk 0:01:07]}  Re7 {[%clk 0:00:46]} 30. Bd6 {[%clk 0:00:56]}  Be5+ {[%clk 0:00:37]} 31. Bxe5 {[%clk 0:00:54]}  Qxe5+ {[%clk 0:00:37]} 32. Qxe5+ {[%clk 0:00:53]}  Rxe5 {[%clk 0:00:38]} 33. Kg3 {[%clk 0:00:51]}  Kf6 {[%clk 0:00:36]} 34. Kf3 {[%clk 0:00:51]}  Ke6 {[%clk 0:00:36]} 35. Rb1 {[%clk 0:00:48]}  Kd5 {[%clk 0:00:32]} 36. a4 {[%clk 0:00:49]}  Re6 {[%clk 0:00:31]} 37. Kf4 {[%clk 0:00:47]}  Kd4 {[%clk 0:00:30]} 38. Kxf5 {[%clk 0:00:44]}  Rc6 {[%clk 0:00:30]} 39. g4 {[%clk 0:00:44]}  Kc3 {[%clk 0:00:30]} 40. h4 {[%clk 0:00:42]}  Kxc2 {[%clk 0:00:30]} 41. Rg1 {[%clk 0:00:41]}  Kxd3 {[%clk 0:00:30]} 42. g5 {[%clk 0:00:42]}  hxg5 {[%clk 0:00:31]} 43. hxg5 {[%clk 0:00:42]}  c4 {[%clk 0:00:31]} 44. g6 {[%clk 0:00:42]}  c3 {[%clk 0:00:31]} 45. g7 {[%clk 0:00:41]}  Rc8 {[%clk 0:00:31]} 46. Rg3+ {[%clk 0:00:39]}  Kd2 {[%clk 0:00:30]} 47. Rg2+ {[%clk 0:00:39]}  Kc1 {[%clk 0:00:30]} 48. Rh2 {[%clk 0:00:32]}  Rg8 {[%clk 0:00:28]} 49. Kf6 {[%clk 0:00:32]}  c2 {[%clk 0:00:27]} 50. Kf7 {[%clk 0:00:32]}  Rxg7+ {[%clk 0:00:26]} 51. Kxg7 {[%clk 0:00:32]}  Kb1 {[%clk 0:00:27]} 52. Rxc2 {[%clk 0:00:27]}  Kxc2 {[%clk 0:00:28]} 53. Kf6 {[%clk 0:00:27]}  Kb3 {[%clk 0:00:28]} 54. Ke5 {[%clk 0:00:27]}  Kxa4 {[%clk 0:00:27]} 0-1


[Site "https://www.chess.com"]